Cogmind - Beta 14 @@@ ROGUE MODE // 2024.09.04 @ 19:35:57 Player: CatgirlLyra Result: Destroyed by G4-HYP(R) with Subdweller Machine Gun Performance ------------- Evolutions (0) 0 Regions Visited (3) 600 Robots Destroyed (18) 90 Value Destroyed (394) 394 Prototype IDs (4) 80 Alien Tech Used (0) 0 Bonus (0) 0 TOTAL SCORE: 1164 Bonus ------- None Cogmind --------- Core Integrity 0/250 Matter 226/300 Energy 200/200 System Corruption 0% Temperature Cool (0) Movement Treading (160) Location -10/Subcaves Parts ------- > --- POWER (1) -------- Subdweller Power Source > --- PROPULSION (2) --- Spiked Treads > --- UTILITY (2) ------ Small Storage Unit Seismic Detector > --- WEAPON (2) ------- Battle Rifle Makeshift Hammer > --- INVENTORY (8) ---- Subdweller Monowheel Disposable Heat Sink Disposable Heat Sink Beam Rifle Beam Rifle Battle Rifle Mining Laser Peak State ------------ > --- POWER ------------ Subdweller Power Source > --- PROPULSION ------- Light Treads Spiked Treads > --- UTILITY ---------- Small Storage Unit Seismic Detector > --- WEAPON ----------- Battle Rifle Makeshift Hammer > --- INVENTORY -------- Subdweller Monowheel Disposable Heat Sink Disposable Heat Sink Beam Rifle Beam Rifle Battle Rifle Mining Laser [Rating: 14] Favorites ----------- Power Ion Engine Engine Ion Engine Propulsion Light Treads Treads Light Treads Utility Small Storage Unit Device Seismic Detector Storage Small Storage Unit Weapon Medium Laser Energy Gun Medium Laser Ballistic Gun Assault Rifle Special Weapon Mining Laser Impact Weapon Makeshift Hammer Build | -11 -10 -10 -10 ------- Run | Yrd Mat Min Sub Slots Evolved . | . . . . Power . | . . . . Propulsion . | . . . . Utility . | . . . . Weapon . | . . . . Parts Attached 28 | 7 3 6 12 Power 2 | 1 . . 1 Engine 2 | 1 . . 1 Core . | . . . . Reactor . | . . . . Propulsion 8 | 2 2 2 2 Treads 8 | 2 2 2 2 Leg . | . . . . Wheel . | . . . . Hover . | . . . . Flight . | . . . . Utility 2 | 2 . . . Device 1 | 1 . . . Storage 1 | 1 . . . Processor . | . . . . Hackware . | . . . . Protection . | . . . . Artifact . | . . . . Weapon 16 | 2 1 4 9 Energy Gun 4 | 1 . 2 1 Energy Cannon . | . . . . Ballistic Gun 7 | 1 1 1 4 Ballistic Cannon . | . . . . Launcher . | . . . . Special Weapon 4 | . . 1 3 Impact Weapon 1 | . . . 1 Slashing Weapon . | . . . . Piercing Weapon . | . . . . Special Melee Weapon . | . . . . Unidentified Prototypes . | . . . . Parts Lost 3 | . . . 3 Power 1 | . . . 1 Propulsion 2 | . . . 2 Utility . | . . . . Weapon . | . . . . Highest Loss Streak 2 | . . . 2 To Critical Strikes 1 | . . . 1 Average Slot Usage (%) 99 | . 100 100 99 Engine 14 | . 14 14 14 Treads 27 | . 28 28 27 Device 14 | . 14 14 14 Storage 14 | . 14 14 14 Energy Gun 13 | . 14 12 13 Ballistic Gun 13 | . 14 14 12 Special Weapon 1 | . . 1 2 Peak Build Rating 14 | 7 7 10 14 Average Rating 8 | 5 6 8 10 On Entrance 6 | . 7 7 10 Naked Turns . | . . . . Heaviest Build 17 | 15 15 17 17 Greatest Support 40 | 40 40 40 40 Greatest Overweight (x) . | . . . . Average Overweight (x) . | . . . . Largest Inventory Capacity 8 | 8 8 8 8 Average Capacity 7 | 7 8 8 8 Most Carried 8 | 7 7 8 8 Average Carried 7 | 4 6 7 7 Final Capacity 8 | 8 8 8 8 Final Carried 8 | 7 7 8 7 Class Distribution -------------------- 51% | Mutant 48% | Scavenger-Mutant Dominant Class ---------------- Mutant | -10/Materials Scavenger-Mutant | -10/Mines Scavenger-Mutant | -10/Subcaves Resources | -11 -10 -10 -10 ----------- Run | Yrd Mat Min Sub Matter Collected 574 | 294 25 158 97 Remotely . | . . . . Salvage Created 588 | 155 237 22 174 Parts 34 | 8 12 3 11 Haulers Intercepted . | . . . . Recyclers Shooed . | . . . . Parts Field Recycled . | . . . . Retrieved Matter . | . . . . Parts Self-Destructed 12 | . . . 12 Prevented . | . . . . Kills | -11 -10 -10 -10 ------- Run | Yrd Mat Min Sub Combat Hostiles Destroyed 11 | . 7 . 4 Guns 11 | . 7 . 4 Classes Destroyed 7 | 2 3 1 1 Builder 1 | . . 1 . Tunneler 4 | 3 . 1 . Recycler 1 | 1 . . . Watcher 1 | . 1 . . Swarmer 3 | . 3 . . Grunt 4 | . 4 . . Subdweller 4 | . . . 4 Best Kill Streak 4 | 4 3 1 2 Combat Bots Only 3 | . 3 . 2 Max Kills in Single Turn 1 | 1 1 1 1 Gunslinging . | . . . . Exploded . | . . . . Melee . | . . . . Uniques/NPCs Destroyed . | . . . . Combat | -11 -10 -10 -10 -------- Run | Yrd Mat Min Sub Hostile Shots Fired 93 | . 45 . 48 Missed 25 | . 12 . 13 Damage Taken 1248 | . 379 . 869 Core 269 | . 59 . 210 Absorbed by Shields . | . . . . Core Remaining (%) 100 | 100 . . . Volleys Fired 84 | 8 37 11 28 Largest 2 | 2 2 2 2 Hottest 100 | 70 70 100 100 Shots Fired 149 | 16 71 12 50 Gun 134 | 16 71 3 44 Cannon . | . . . . Launcher . | . . . . Special 15 | . . 9 6 Kinetic 68 | 8 36 2 22 Thermal 81 | 8 35 10 28 Explosive . | . . . . Electromagnetic . | . . . . Robot Hit Streak 10 | 10 6 1 10 Robot Miss Streak 6 | 1 6 1 1 Penetration Max . | . . . . Secondary Targets 2 | . 1 . 1 Max Gunslinging Chain 1 | . 1 . 1 Shots Hit Robots 93 | 12 41 1 39 Core Hits 31 | 5 15 3 8 Critical Kills . | . . . . Critical Parts Destroyed . | . . . . Critical Strikes 4 | 1 3 . . Burn 4 | 1 3 . . Melee Attacks 7 | . . . 7 Impact 7 | . . . 7 Slashing . | . . . . Piercing . | . . . . Sneak Attacks . | . . . . Combat Hostiles . | . . . . Follow-up Attacks . | . . . . Damage Inflicted 1301 | 158 545 29 569 Guns 1085 | 158 545 18 364 Cannons . | . . . . Explosions . | . . . . Melee 205 | . . . 205 Ramming 11 | . . 11 . Kinetic 557 | 71 278 18 190 Thermal 528 | 87 267 . 174 Explosive . | . . . . Electromagnetic . | . . . . Impact 205 | . . . 205 Slashing . | . . . . Piercing . | . . . . Highest Corruption . | . . . . Average Corruption . | . . . . Corruption Purged . | . . . . Corruption Blocked . | . . . . Overload Shots . | . . . . Overflow Damage . | . . . . Projectiles . | . . . . Explosions . | . . . . Melee . | . . . . Knockbacks 4 | . . . 4 Impact 4 | . . . 4 Kinetic . | . . . . Secondary . | . . . . Self-Inflicted Damage . | . . . . Shots . | . . . . Rammed 6 | . . 6 . Targets Rammed 7 | . . 7 . Kicked . | . . . . Crushed 1 | . . 1 . Highest Temperature 198 | 72 198 86 6 Average Temperature 49 | 37 55 48 6 Received Heat Transfer 276 | . 129 . 147 Siege Activations . | . . . . Robots Corrupted . | . . . . Combat Hostiles . | . . . . Parts Fried . | . . . . Impact Corruptions . | . . . . Robots Melted . | . . . . Combat Hostiles . | . . . . Parts Melted 1 | 1 . . . Heat Transferred 1776 | 333 999 . 444 Parts Sabotaged . | . . . . Parts Stolen . | . . . . Parts Stripped . | . . . . Power Chain Reactions . | . . . . Alert | -11 -10 -10 -10 ------- Run | Yrd Mat Min Sub Peak Influence 260 | 20 260 54 . Initial 43 | . 13 43 . Average 84 | 6 124 46 . Maximum Alert Level 1 | . 1 . . Low Security (%) 90 | 100 81 100 . Level 1 10 | . 18 . . Level 2 . | . . . . Level 3 . | . . . . Level 4 . | . . . . Level 5 . | . . . . High Security . | . . . . Max Security . | . . . . Squads Dispatched 2 | . 2 . . Investigation . | . . . . Extermination . | . . . . Reinforcement 2 | . 2 . . Assault . | . . . . Garrison . | . . . . Intercept . | . . . . Searches Triggered . | . . . . Construction Impeded . | . . . . Haulers Reinforced . | . . . . Active Scanning Responses . | . . . . Cargo Convoy Interrupts . | . . . . Stealth | -11 -10 -10 -10 --------- Run | Yrd Mat Min Sub Distress Signals . | . . . . Communications Jammed . | . . . . Distress Signals . | . . . . Times Spotted 22 | . 14 2 6 Peak Tracking Total 4 | . 4 . 3 Tactical Retreats . | . . . . Traps | -11 -10 -10 -10 ------- Run | Yrd Mat Min Sub Traps Triggered 4 | . 2 . 2 Indirectly . | . . . . Trap Hack Attempts . | . . . . Triggered . | . . . . Disarmed . | . . . . Reprogrammed . | . . . . Reused . | . . . . Traps Extracted . | . . . . Installed . | . . . . Triggered . | . . . . Machines | -11 -10 -10 -10 ---------- Run | Yrd Mat Min Sub Machines Disabled . | . . . . Max in Single Turn . | . . . . Machines Repaired . | . . . . Machines Dismantled . | . . . . Machines Sabotaged . | . . . . Overloaded Fab Kills . | . . . . Hacking | -11 -10 -10 -10 --------- Run | Yrd Mat Min Sub Machines Accessed 5 | . 5 . . Terminals 5 | . 5 . . Fabricators . | . . . . Repair Stations . | . . . . Recycling Units . | . . . . Scanalyzers . | . . . . Garrison Access . | . . . . Total Hacks 15 | . 15 . . Successful 6 | . 6 . . Failed 9 | . 9 . . Catastrophic 2 | . 2 . . Database Lockouts . | . . . . Manual 4 | . 4 . . Terminals 15 | . 15 . . Fabricators . | . . . . Repair Stations . | . . . . Recycling Units . | . . . . Scanalyzers . | . . . . Garrison Access . | . . . . Terminal Hacks 5 | . 5 . . Robot Analysis 1 | . 1 . . Prototype ID Bank 2 | . 2 . . Locate Traps 1 | . 1 . . Registered Components 1 | . 1 . . Fabricator Hacks . | . . . . Repair Station Hacks . | . . . . Recycling Unit Hacks . | . . . . Scanalyzer . | . . . . Garrison Access Hacks . | . . . . Unauthorized Hacks 1 | . 1 . . Terminals 1 | . 1 . . Botnet 1 | . 1 . . Fabricators . | . . . . Repair Stations . | . . . . Recycling Units . | . . . . Scanalyzers . | . . . . Garrison Access . | . . . . Data Cores Recovered . | . . . . Used . | . . . . Hacking Detections 5 | . 5 . . Full Trace Events . | . . . . Feedback Events . | . . . . Feedback Blocked . | . . . . Robot Schematics Acquired . | . . . . Robots Built . | . . . . Authchips . | . . . . Time . | . . . . Total Robot Build Rating . | . . . . Part Schematics Acquired . | . . . . Parts Built . | . . . . Authchips . | . . . . Time . | . . . . Total Part Build Rating . | . . . . Parts Repaired . | . . . . Time . | . . . . Parts Recycled . | . . . . Recycled Matter . | . . . . Retrieved Matter . | . . . . Retrieved Components . | . . . . Parts Scanalyzed . | . . . . Part Schematics Acquired . | . . . . Parts Damaged . | . . . . Bothacking | -11 -10 -10 -10 ------------ Run | Yrd Mat Min Sub Used RIF Installer . | . . . . Robots Hacked . | . . . . Non-combat . | . . . . Combat . | . . . . Robot Hacks Applied . | . . . . Relay Couplers Released . | . . . . Fabnet Peak Effective % . | . . . . Robots Rewired . | . . . . Allies Hacked . | . . . . Hacks Repelled . | . . . . Allies | -11 -10 -10 -10 -------- Run | Yrd Mat Min Sub Total Allies . | . . . . Largest Group . | . . . . Highest-Rated Group . | . . . . Highest-Rated Ally . | . . . . Total Orders . | . . . . Ally Attacks . | . . . . Total Damage . | . . . . Kills . | . . . . Allies Corrupted . | . . . . Allies Melted . | . . . . Intel | -11 -10 -10 -10 ------- Run | Yrd Mat Min Sub Robot Analysis Total 1 | . 1 . . Derelict Logs Recovered . | . . . . Drone Launches . | . . . . Drone Recoveries . | . . . . Exploration | -11 -10 -10 -10 ------------- Run | Yrd Mat Min Sub Turns Passed 1520 | 106 556 368 490 Spaces Moved 729 | 45 278 188 218 Core 6 | 6 . . . Treads 723 | 39 278 188 218 Legs . | . . . . Wheels . | . . . . Hover . | . . . . Flight . | . . . . Fastest Speed 50 | 50 160 160 160 Average Speed 159 | 145 160 160 160 Slowest Speed 160 | 160 160 160 160 Overloaded Moves . | . . . . Propulsion Burnouts . | . . . . Robots Hopped . | . . . . Cave-ins Triggered . | . . . . Exploration Rate (%) 27 | 4 59 32 14 Regions Visited 3 Branch Regions 2 Pre-discovered Areas . | . . . . Known Exits Taken . | . . . . Unknown Exits Taken 3 | 1 1 1 . Scrap Searched 1 | . . 1 . Spaces Dug . | . . . . Terrain Destroyed 1 | . . 1 . Melee . | . . . . Projectile 1 | . . 1 . AOE . | . . . . Terrain Rammed . | . . . . Walls Destroyed . | . . . . Machines Disabled . | . . . . Actions | -11 -10 -10 -10 --------- Run | Yrd Mat Min Sub Total 897 | 66 318 223 290 Wait 14 | . . . 14 Move 726 | 44 277 187 218 Hop . | . . . . Pick Up 17 | 7 1 4 5 Fast Attach 11 | 7 2 2 . Attach 4 | . 1 1 2 Detach . | . . . . Swap 13 | . . 3 10 Drop 14 | . . 8 6 Fire 84 | 8 37 11 28 Melee 7 | . . . 7 Ram . | . . . . Kick . | . . . . Crush 7 | . . 7 . Escape Stasis . | . . . . Rewire . | . . . . Trap . | . . . . Miscellaneous . | . . . . Route ------- -11/Scrapyard -10/Materials (discovered 3 exits: [*Mat x2] / [*Min]) -10/Mines (discovered 2 exits: [*Mat] / [*Sub]) -10/Subcaves History --------- Turn | Location | Event 10 | -11/Scrapyard | Discovered new exit (range 15) 107 | -11/Scrapyard | Entered Materials 303 | -10/Materials | Build established: Mutant 335 | -10/Materials | Discovered new exit (range 10) 463 | -10/Materials | Discovered new exit (range 10) 604 | -10/Materials | Discovered new exit (range 6) 663 | -10/Materials | Entered Mines 685 | -10/Mines | Met a Derelict bent on vengeance 703 | -10/Mines | Discovered new exit (range 10) 767 | -10/Mines | Joined a pair of Derelicts in attacking an 0b10 outpost 893 | -10/Mines | A weapon hastily lodged in a ceiling crevice suddenly fell to the ground 996 | -10/Mines | Discovered new exit (range 4) 1031 | -10/Mines | Entered Subcaves 1078 | -10/Subcaves | Build established: Scavenger-Mutant 1238 | -10/Subcaves | A swath of the cavern ceiling suddenly collapsed 1491 | -10/Subcaves | Ambushed by Subdweller buried in earth 1491 | -10/Subcaves | Ambushed by Subdweller buried in earth 1492 | -10/Subcaves | Core integrity fell below 50% 1503 | -10/Subcaves | Core integrity fell below 20% 1521 | -10/Subcaves | Destroyed by G4-HYP(R) with Subdweller Machine Gun Last Messages --------------- 01358_ Triggered Piercing Trap. 01358_ Spikes shoot up from the floor. 01358_ Critical hit (Impale). 01388_ Triggered Piercing Trap. 01388_ Spikes shoot up from the floor. 01428_ Dropped Lgt. Treads. 01436_ Dropped Hvy. Assault Rifle. 01484_ 2D-JVE(R) destroyed. 01492_ G4-HYP(R): "FREEEEDUMB!" 01492_ G2-H3J(R): "ARGHSUB!" 01500_ 01-Z8W(R) destroyed. 01500_ Switching to secondary target: G2-H3J(R). 01501_ Lgt. Treads destroyed. 01505_ G4-HYP(R) affixes Scrap Shield Fragment to Scrap Shield. 01508_ G4-HYP(R) knocked back. 01510_ G2-H3J(R) knocked back. 01514_ G4-HYP(R) knocked back. 01518_ Critical hit (Destroy). 01518_ Lgt. Treads destroyed. 01518_ G4-HYP(R) knocked back. Map ----- +----------------------------------------------------+ | ??????????????????? ???????????????????????????? | | ???????????????????? ###????####????????????????? | | ???????????????????? #??## #????????????????? | | ???????????????????? ???# #????????????????? | | ???????????????????? ??? #????????????????? | | ????????????????????# ???# #??????? ????????? | | ???????????????????## ??## ??????## ????????? | | ???????????????????# ?## #?????? ????????? | | ???????????????????# #?# #?????? ????????? | | ??????????????????## #?? #?????? #????????? | | ?????????????????## ###?#= #??????? #????????? | | ????????????????## ### ##?????# ##???????? | | ???????????????## ##???? ##??????? | | ???????????????# [ ##???# ##?????? | | ???????????????# ## #??## #?????? | | ???????????????## #### #?## #?????? | | ????????# ??????# ##?# #?# ??????? | | ????????# #### ### ### #?????????? | | ?????????# ### | ##????????? | | ?????????# #?#### ###??????? | | ????????# # # #######?#### ##?????? | | ????????#" ?###### # ## #?#### ##?#### | | ?????????????????## #?????## ### # | | ????????????????## #??????## | | ???????????????## #???????# | | ???????????????# !@ #??????## ### | | ???????????????# %RR #?????## ##?## | | ???????????????#### " ] #????## #???# | | ??????????????????##" ]; ###### ###???# | | ???????????????????## %# ### ####?????? | | ????????????????????### #####?# #???????## | | ?????????????????????# " #?????## #?????## | | ????????????????????" """ #?????#### ##?????# | | ??????????????????? """"" #????????# ##??????# | | ??????????????????###""""##????????# #???????## | | ????????????????????#"""##?????????# #???????## | | ??????????????????????" ??????????## ???##### | | ????????????????????????????????????## ???# | | ?????????????????????????????????????# | | ?????????????????????????????????????###### ##### | | ?????????????????????????????????????????????????? | | ?????????????????????????????????????????????????? | | ?????????????????????????????????????????????????? | | ?????????????????????????????????????????????????? | | ?????????????????????????????????????????????????? | | ?????????????????????????????????????????????????? | | ?????????????????????????????????????????????????? | | ?????????????????????????????????????????????????? | | ?????????????????????????????????????????????????? | | ?????????????????????????????????????????????????? | +----------------------------------------------------+ Best States ------------- Heat Dissipation 25 Energy Generation 15 Energy Capacity 250 Matter Stores 300 Matter Capacity 300 Sight Range 16 Terrain Scan Density 10 Evasion (%) 40 Recoil Reduction 2 Item Schematics ----------------- None Robot Schematics ------------------ None Fabricated ------------ Nothing Alien Tech Used ----------------- None Achievements -------------- None Challenges ------------ None Game ------ Seed SpreadThiefDoublenader Manual? 0 Play Time 00:13:55 Cumulative 88.1 hours Start 2024.09.04 @ 18:09:31 End 2024.09.04 @ 19:35:57 Sessions 3 Manual Loads 0 Difficulty Rogue Special Mode None Game No. 49 Rogue 49 Adventurer 0 Explorer 0 Win Type - Total 3 Types 1/0/0/2/0/0/0/0/0 Lore% 46 Gallery% 61 Achievement% 53 Wizard Run 0 Options --------- Layout 0 ASCII 0 Keyboard 0 Movement Numpad Keybinds 0 Fullscreen 1 Font 18/X11 Map View 76x50 Zoom Use 0% Tactical HUD 1 Map Filters NONE Filters NONE Steam 1 RUN: aca1ea52-fe8f-4733-9abe-935c38a673c0